fUST/lending_fUST_20240727
["ID","MTS","AMOUNT","RATE_DAILY","PERIOD"]
[333282223,1722018649869,-334.320932,0.00013972,2]
[333282224,1722018649880,-516.12729304,0.00013972,2]
[333282225,1722018649891,-500.0,0.00013972,2]
[333282226,1722018649903,-500.0,0.00013972,2]
[333282227,1722018649914,-530.578166,0.00013972,2]
[333282228,1722018649925,-2174.84,0.00013972,2]
[333282229,1722018649936,-500.0,0.00013972,2]
[333282230,1722018649947,-530.578166,0.00013972,2]
[333282231,1722018649958,-960.188475,0.00013972,2]
[333282232,1722018649968,-151.0,0.00013972,2]
[333282233,1722018649979,-828.72,0.00013972,2]
[333282234,1722018649989,-960.188475,0.00013972,2]
[333282235,1722018650000,-500.0,0.00013972,2]
[333282236,1722018650010,-1041.76,0.00013972,2]
[333282237,1722018650023,-1205.1,0.00013972,2]
[333282238,1722018650033,-500.0,0.00013972,2]
[333282239,1722018650044,-1646.68,0.00013972,2]
[333282240,1722018650054,-500.0,0.00013972,2]
[333282241,1722018650065,-500.0,0.00013972,2]
[333282242,1722018650076,-1583.11,0.00013972,2]
[333282243,1722018650087,-500.0,0.00013972,2]
[333282244,1722018650098,-721.209202,0.00013972,2]
[333282245,1722018650109,-643.23,0.00013972,2]
[333282246,1722018650119,-721.209202,0.00013972,2]
[333282247,1722018650130,-500.0,0.00013972,2]
[333282248,1722018650141,-684.26,0.00013972,2]
[333282249,1722018650152,-500.0,0.00013972,2]
[333282250,1722018650166,-999.35,0.00013972,2]
[333282251,1722018650177,-151.0,0.00013972,2]
[333282252,1722018650188,-4040.77,0.00013972,2]
[333282253,1722018650199,-605.8,0.00013972,2]
[333282254,1722018650212,-500.0,0.00013972,2]
[333282255,1722018650221,-547.12,0.00013972,2]
[333282256,1722018650232,-500.0,0.00013972,2]
[333282257,1722018650245,-500.0,0.00013972,2]
[333282258,1722018650255,-500.0,0.00013972,2]
[333282259,1722018650265,-500.0,0.00013972,2]
[333282260,1722018650276,-500.0,0.00013972,2]
[333282261,1722018650287,-318.543474,0.00013972,2]
[333282262,1722018650297,-318.543474,0.00013972,2]
[333282263,1722018650307,-151.0,0.00013972,2]
[333282264,1722018650319,-151.0,0.00013972,2]
[333282265,1722018650328,-500.0,0.00013972,2]
[333282266,1722018650338,-500.0,0.00013972,2]
[333282267,1722018650348,-671.03,0.00013972,2]
[333282268,1722018650359,-151.0,0.00013972,2]
[333282269,1722018650369,-697.8,0.00013972,2]
[333282270,1722018650380,-500.0,0.00013972,2]
[333282271,1722018650392,-500.0,0.00013972,2]
[333282272,1722018650403,-3311.3,0.00013972,2]
[333282273,1722018650415,-911.04,0.00013972,2]
[333282274,1722018650425,-500.0,0.00013972,2]
[333282275,1722018650437,-500.0,0.00013972,2]
[333282276,1722018650449,-500.0,0.00013972,2]
[333282277,1722018650461,-1661.96,0.00013972,2]
[333282278,1722018650471,-397.756453,0.00013972,2]
[333282279,1722018650482,-786.67,0.00013972,2]
[333282280,1722018650492,-878.25,0.00013972,2]
[333282281,1722018650503,-500.0,0.00013972,2]
[333282282,1722018650512,-265.789588,0.00013972,2]
[333282283,1722018650522,-397.756453,0.00013972,2]
[333282284,1722018650532,-500.0,0.00013972,2]
[333282285,1722018650542,-500.0,0.00013972,2]
[333282286,1722018650552,-500.0,0.00013972,2]
[333282287,1722018650562,-500.0,0.00013972,2]
[333282288,1722018650572,-868.55,0.00013972,2]
[333282289,1722018650581,-151.0,0.00013972,2]
[333282290,1722018650591,-500.0,0.00013972,2]
[333282291,1722018650601,-500.0,0.00013972,2]
[333282292,1722018650610,-500.0,0.00013972,2]
[333282293,1722018650620,-151.0,0.00013972,2]
[333282294,1722018650630,-500.0,0.00013972,2]
[333282295,1722018650650,-525.81,0.00013972,2]
[333282296,1722018650662,-500.0,0.00013972,2]
[333282297,1722018650672,-500.0,0.00013972,2]
[333282298,1722018650682,-780.08,0.00013972,2]
[333282299,1722018650693,-151.0,0.00013972,2]
[333282300,1722018650703,-1045.39,0.00013972,2]
[333282301,1722018650714,-151.0,0.00013972,2]
[333282302,1722018650724,-578.14,0.00013972,2]
[333282303,1722018650735,-434.304041,0.00013972,2]
[333282304,1722018650744,-500.0,0.00013972,2]
[333282305,1722018650755,-151.0,0.00013972,2]
[333282306,1722018650765,-500.0,0.00013972,2]
[333282307,1722018650775,-434.304041,0.00013972,2]
[333282308,1722018650785,-500.0,0.00013972,2]
[333282309,1722018650796,-500.0,0.00013972,2]
[333282310,1722018650806,-600.63,0.00013972,2]
[333282311,1722018650819,-561.74,0.00013972,2]
[333282312,1722018650833,-500.0,0.00013972,2]
[333282313,1722018650843,-151.0,0.00013972,2]
[333282314,1722018650855,-500.0,0.00013972,2]
[333282315,1722018650865,-500.0,0.00013972,2]
[333282316,1722018650875,-500.0,0.00013972,2]
[333282317,1722018650885,-500.0,0.00013972,2]
[333282318,1722018650895,-500.0,0.00013972,2]
[333282319,1722018650905,-620.22,0.00013972,2]
[333282320,1722018650915,-502.16659632,0.00013972,2]
[333282321,1722018650926,-1011.474559,0.00013972,2]
[333282322,1722018650936,-500.0,0.00013972,2]
[333282323,1722018650946,-635.62,0.00013972,2]
[333282324,1722018650956,-505.83,0.00013972,2]
[333282325,1722018650967,-1187.44,0.00013972,2]
[333282326,1722018650978,-1011.474559,0.00013972,2]
[333282327,1722018650988,-150.112233,0.00014,2]
[333282328,1722018650998,-153.0,0.00014033,2]
[333282329,1722018651008,-153.0,0.00014033,2]
[333282330,1722018651019,-153.0,0.00014033,2]
[333282331,1722018651030,-153.0,0.00014033,2]
[333282332,1722018651039,-153.0,0.00014033,2]
[333282333,1722018651049,-153.0,0.00014033,2]
[333282334,1722018651060,-153.0,0.00014033,2]
[333282335,1722018651070,-153.0,0.00014033,2]
[333282336,1722018651080,-153.0,0.00014033,2]
[333282337,1722018651090,-153.0,0.00014033,2]
[333282338,1722018651100,-153.0,0.00014033,2]
[333282339,1722018651111,-153.0,0.00014033,2]
[333282340,1722018651121,-153.0,0.00014033,2]
[333282341,1722018651131,-150.112233,0.000141,2]
[333282342,1722018651141,-150.112233,0.000141,2]
[333282343,1722018651151,-4222.23975135,0.00014104,2]
[333282344,1722018651166,-200.0,0.0001411,2]
[333282345,1722018651178,-367.53930495,0.00014126,2]
[333282346,1722018651188,-150.112233,0.000142,2]
[333282347,1722018651200,-178.017382,0.0001421,2]
[333282348,1722018651212,-279.4502,0.0001421,2]
[333282349,1722018651221,-197.909925,0.0001421,2]
[333282350,1722018651232,-152.093196,0.0001421,2]
[333282351,1722018651246,-217.78009,0.0001421,2]
[333282352,1722018651258,-195.441914,0.0001421,2]
[333282353,1722018651270,-157.228433,0.0001421,2]
[333282354,1722018651282,-150.0,0.0001423,2]
[333282355,1722018651293,-1409.0,0.0001423,2]
[333282356,1722018651305,-500.0,0.00014245,2]
[333282357,1722018651317,-500.0,0.00014245,2]
[333282358,1722018651328,-2286.05,0.00014245,2]
[333282359,1722018651338,-2286.05,0.00014245,2]
[333282360,1722018651348,-2286.05,0.00014245,2]
[333282361,1722018651359,-2286.05,0.00014245,2]
[333282362,1722018651369,-2286.05,0.00014245,2]
[333282363,1722018651379,-2286.05,0.00014245,2]
[333282364,1722018651389,-2286.06476397,0.00014245,2]
[333282365,1722018651399,-151.0,0.00014245,2]
[333282366,1722018651410,-176.05499524,0.00014246,2]
[333282367,1722018651420,-373.22337155,0.00014246,2]
[333282368,1722018651431,-500.0,0.00014246,2]
[333282369,1722018651441,-500.0,0.00014246,2]
[333282370,1722018651451,-500.0,0.00014246,2]
[333282371,1722018651460,-500.0,0.00014246,2]
[333282372,1722018651471,-500.0,0.00014246,2]
[333282373,1722018651483,-151.0,0.00014246,2]
[333282374,1722018651494,-325.716013,0.00014246,2]
[333282375,1722018651505,-500.0,0.00014246,2]
[333282376,1722018651515,-151.0,0.00014246,2]
[333282377,1722018651525,-500.0,0.00014246,2]
[333282378,1722018651535,-500.0,0.00014246,2]
[333282379,1722018651545,-804.35,0.00014246,2]
[333282380,1722018651555,-500.0,0.00014246,2]
[333282381,1722018651566,-500.0,0.00014246,2]
[333282382,1722018651576,-500.0,0.00014246,2]
[333282383,1722018651586,-151.0,0.00014246,2]
[333282384,1722018651596,-500.0,0.00014246,2]
[333282385,1722018651608,-151.0,0.00014246,2]
[333282386,1722018651618,-151.0,0.00014246,2]
[333282387,1722018651628,-731.71,0.00014246,2]
[333282388,1722018651638,-187.92,0.00014246,2]
[333282389,1722018651648,-268.642095,0.00014246,2]
[333282390,1722018651658,-268.642095,0.00014246,2]
[333282391,1722018651668,-500.0,0.00014246,2]
[333282392,1722018651679,-500.0,0.00014246,2]
[333282393,1722018651689,-500.0,0.00014246,2]
[333282394,1722018651699,-500.0,0.00014246,2]
[333282395,1722018651710,-500.0,0.00014246,2]
[333282396,1722018651720,-500.0,0.00014246,2]
[333282397,1722018651731,-500.0,0.00014246,2]
[333282398,1722018651741,-622.85,0.00014246,2]
[333282399,1722018651751,-600.75,0.00014246,2]
[333282400,1722018651761,-680.5,0.00014246,2]
[333282401,1722018651771,-833.43,0.00014246,2]
[333282402,1722018651782,-151.0,0.00014246,2]
[333282403,1722018651792,-500.0,0.00014246,2]
[333282404,1722018651802,-237.863934,0.00014246,2]
[333282405,1722018651813,-238.26127648,0.00014246,2]
[333282406,1722018651823,-423.09847658,0.00014246,2]
[333282407,1722018651833,-500.0,0.00014246,2]
[333282408,1722018651842,-500.0,0.00014246,2]
[333282409,1722018651852,-500.0,0.00014246,2]
[333282410,1722018651862,-784.33,0.00014246,2]
[333282411,1722018651873,-533.03,0.00014246,2]
[333282412,1722018651882,-500.0,0.00014246,2]
[333282413,1722018651893,-500.0,0.00014246,2]
[333282414,1722018651903,-500.0,0.00014246,2]
[333282415,1722018651914,-500.0,0.00014246,2]
[333282416,1722018651924,-948.14,0.00014246,2]
[333282417,1722018651935,-740.15,0.00014246,2]
[333282418,1722018651945,-595.72,0.00014246,2]
[333282419,1722018651955,-500.0,0.00014246,2]
[333282420,1722018651964,-500.0,0.00014246,2]
[333282421,1722018651974,-1393.67,0.00014246,2]
[333282422,1722018651984,-500.0,0.00014246,2]
[333282423,1722018651994,-500.0,0.00014246,2]
[333282424,1722018652004,-500.0,0.00014246,2]
[333282425,1722018652014,-500.0,0.00014246,2]
[333282426,1722018652024,-500.0,0.00014246,2]
[333282427,1722018652034,-511.54,0.00014246,2]
[333282428,1722018652044,-500.0,0.00014246,2]
[333282429,1722018652054,-500.0,0.00014246,2]
[333282430,1722018652065,-500.0,0.00014246,2]
[333282431,1722018652075,-507.04371793,0.00014246,2]
[333282432,1722018652085,-500.0,0.00014246,2]
[333282433,1722018652094,-308.07521683,0.00014246,2]
[333282434,1722018652104,-500.0,0.00014246,2]
[333282435,1722018652114,-500.0,0.00014246,2]
[333282436,1722018652124,-500.0,0.00014246,2]
[333282437,1722018652134,-500.0,0.00014246,2]
[333282438,1722018652144,-500.0,0.00014246,2]
[333282439,1722018652154,-1627.04,0.00014246,2]
[333282440,1722018652165,-500.0,0.00014246,2]
[333282441,1722018652177,-500.0,0.00014246,2]
[333282442,1722018652186,-500.0,0.00014246,2]
[333282443,1722018652197,-983.07,0.00014246,2]
[333282444,1722018652209,-797.01,0.00014246,2]
[333282445,1722018652219,-500.0,0.00014246,2]
[333282446,1722018652229,-4761.86,0.00014246,2]
[333282447,1722018652239,-500.0,0.00014246,2]
[333282448,1722018652250,-500.0,0.00014246,2]
[333282449,1722018652260,-1306.28,0.00014246,2]
[333282450,1722018652416,-311.68968242,0.00014246,2]
[333282451,1722018652428,-500.0,0.00014246,2]
[333282452,1722018652439,-500.0,0.00014246,2]
[333282453,1722018652449,-151.0,0.00014246,2]
[333282454,1722018652461,-969.19,0.00014246,2]
[333282455,1722018652470,-500.0,0.00014246,2]
[333282456,1722018652480,-825.44,0.00014246,2]
[333282457,1722018652493,-500.0,0.00014246,2]
[333282458,1722018652503,-500.0,0.00014246,2]
[333282459,1722018652514,-500.0,0.00014246,2]
[333282460,1722018652525,-767.58,0.00014246,2]
[333282461,1722018652535,-500.0,0.00014246,2]
[333282462,1722018652546,-151.0,0.00014246,2]
[333282463,1722018652558,-500.0,0.00014246,2]
[333282464,1722018652568,-500.0,0.00014246,2]
[333282465,1722018652578,-151.0,0.00014246,2]
[333282466,1722018652587,-726.29,0.00014246,2]
[333282467,1722018652597,-868.81,0.00014246,2]
[333282468,1722018652608,-618.32,0.00014246,2]
[333282469,1722018652619,-500.0,0.00014246,2]
[333282470,1722018652628,-151.0,0.00014246,2]
[333282471,1722018652639,-500.0,0.00014246,2]
[333282472,1722018652648,-1921.95,0.00014246,2]
[333282473,1722018652660,-500.0,0.00014246,2]
[333282474,1722018652670,-500.0,0.00014246,2]
[333282475,1722018652679,-334.320932,0.00014246,2]
[333282476,1722018652688,-5389.54,0.00014246,2]
[333282477,1722018652698,-429.51,0.00014246,2]
[333282478,1722018652707,-500.0,0.00014246,2]
[333282479,1722018652717,-334.320932,0.00014246,2]
[333282480,1722018652729,-500.0,0.00014246,2]
[333282481,1722018652741,-500.0,0.00014246,2]
[333282482,1722018652751,-530.578166,0.00014246,2]
[333282483,1722018652762,-2174.84,0.00014246,2]
[333282484,1722018652771,-500.0,0.00014246,2]
[333282485,1722018652781,-530.578166,0.00014246,2]
[333282486,1722018652790,-960.188475,0.00014246,2]
[333282487,1722018652799,-151.0,0.00014246,2]
[333282488,1722018652811,-828.72,0.00014246,2]
[333282489,1722018652822,-960.188475,0.00014246,2]
[333282490,1722018652833,-511.40965846,0.00014246,2]
[333282491,1722018652846,-1041.76,0.00014246,2]
[333282492,1722018652857,-1205.1,0.00014246,2]
[333282493,1722018652867,-1646.68,0.00014246,2]
[333282494,1722018652876,-500.0,0.00014246,2]
[333282495,1722018652886,-483.78754246,0.00014246,2]
[333282496,1722018652896,-1583.11,0.00014246,2]
[333282497,1722018652905,-500.0,0.00014246,2]
[333282498,1722018652914,-721.209202,0.00014246,2]
[333282499,1722018652924,-643.23,0.00014246,2]
[333282500,1722018652933,-721.209202,0.00014246,2]
[333282501,1722018652943,-500.0,0.00014246,2]
[333282502,1722018652952,-684.26,0.00014246,2]
[333282503,1722018652962,-500.0,0.00014246,2]
[333282504,1722018652973,-999.35,0.00014246,2]
[333282505,1722018652984,-151.0,0.00014246,2]
[333282506,1722018652994,-4040.77,0.00014246,2]
[333282507,1722018653006,-605.8,0.00014246,2]
[333282508,1722018653016,-516.35615577,0.00014246,2]
[333282509,1722018653027,-547.12,0.00014246,2]
[333282510,1722018653037,-500.0,0.00014246,2]
[333282511,1722018653047,-500.0,0.00014246,2]
[333282512,1722018653058,-417.85646683,0.00014246,2]
[333282513,1722018653068,-500.0,0.00014246,2]
[333282514,1722018653078,-318.543474,0.00014246,2]
[333282515,1722018653089,-318.543474,0.00014246,2]
[333282516,1722018653098,-151.0,0.00014246,2]
[333282517,1722018653108,-151.007395,0.00014246,2]
[333282518,1722018653118,-500.0,0.00014246,2]
[333282519,1722018653127,-500.0,0.00014246,2]
[333282520,1722018653137,-671.03,0.00014246,2]
[333282521,1722018653147,-197.798972,0.00014246,2]
[333282522,1722018653157,-697.8,0.00014246,2]
[333282523,1722018653169,-500.0,0.00014246,2]
[333282524,1722018653180,-500.0,0.00014246,2]
[333282525,1722018653190,-3311.3,0.00014246,2]
[333282526,1722018653200,-911.04,0.00014246,2]
[333282527,1722018653211,-500.0,0.00014246,2]
[333282528,1722018653220,-500.0,0.00014246,2]
[333282529,1722018653230,-1661.96,0.00014246,2]
[333282530,1722018653241,-397.756453,0.00014246,2]
[333282531,1722018653250,-786.67,0.00014246,2]
[333282532,1722018653260,-878.25,0.00014246,2]
[333282533,1722018653269,-500.0,0.00014246,2]
[333282534,1722018653279,-397.756453,0.00014246,2]
[333282535,1722018653291,-500.0,0.00014246,2]
[333282536,1722018653301,-500.0,0.00014246,2]
[333282537,1722018653311,-500.0,0.00014246,2]
[333282538,1722018653323,-533.36,0.00014246,2]
[333282539,1722018653335,-868.55,0.00014246,2]
[333282540,1722018653345,-151.0,0.00014246,2]
[333282541,1722018653354,-500.0,0.00014246,2]
[333282542,1722018653363,-500.0,0.00014246,2]
[333282543,1722018653373,-500.0,0.00014246,2]
[333282544,1722018653382,-151.0,0.00014246,2]
[333282545,1722018653392,-500.0,0.00014246,2]
[333282546,1722018653401,-525.81,0.00014246,2]
[333282547,1722018653410,-500.0,0.00014246,2]
[333282548,1722018653420,-780.08,0.00014246,2]
[333282549,1722018653430,-151.0,0.00014246,2]
[333282550,1722018653439,-1045.39,0.00014246,2]
[333282551,1722018653450,-151.0,0.00014246,2]
[333282552,1722018653460,-578.14,0.00014246,2]
[333282553,1722018653470,-434.304041,0.00014246,2]
[333282554,1722018653479,-500.0,0.00014246,2]
[333282555,1722018653489,-649.02039044,0.00014246,2]
[333282556,1722018653498,-434.304041,0.00014246,2]
[333282557,1722018653508,-561.74,0.00014246,2]
[333282558,1722018653518,-600.63,0.00014246,2]
[333282559,1722018653527,-500.0,0.00014246,2]
[333282560,1722018653537,-500.0,0.00014246,2]
[333282561,1722018653547,-500.0,0.00014246,2]
[333282562,1722018653556,-513.49145034,0.00014246,2]
[333282563,1722018653567,-500.0,0.00014246,2]
[333282564,1722018653576,-500.0,0.00014246,2]
[333282565,1722018653585,-620.22,0.00014246,2]
[333282566,1722018653595,-1011.474559,0.00014246,2]
[333282567,1722018653604,-640.43780664,0.00014246,2]
[333282568,1722018653613,-635.62,0.00014246,2]
[333282569,1722018653623,-505.83,0.00014246,2]
[333282570,1722018653632,-1187.44,0.00014246,2]
[333282571,1722018653640,-1011.474559,0.00014246,2]
[333282572,1722018653650,-670.304128,0.00014247,2]
[333282573,1722018653660,-750.0,0.00014247,2]
[333282574,1722018653670,-150.112233,0.000143,2]
[333282575,1722018653680,-178.017382,0.00014388,2]
[333282576,1722018653689,-279.4502,0.00014388,2]
[333282577,1722018653698,-150.112233,0.000144,2]
[333282578,1722018653708,-600.0,0.00014465,2]
[333282579,1722018653718,-3200.0,0.0001451,2]
[333282580,1722018653727,-300.191,0.0001451,2]
[333282581,1722018653737,-500.0,0.00014519,2]
[333282582,1722018653746,-500.0,0.00014519,2]
[333282583,1722018653757,-500.0,0.0001452,2]
[333282584,1722018653766,-500.0,0.0001452,2]
[333282585,1722018653776,-500.0,0.0001452,2]
[333282586,1722018653786,-500.0,0.0001452,2]
[333282587,1722018653795,-500.0,0.0001452,2]
[333282588,1722018653806,-500.0,0.0001452,2]
[333282589,1722018653816,-500.0,0.0001452,2]
[333282590,1722018653827,-804.35,0.0001452,2]
[333282591,1722018653837,-500.0,0.0001452,2]
[333282592,1722018653847,-181.08569199,0.0001452,2]
[333282593,1722018653857,-500.0,0.0001452,2]
[333282594,1722018653867,-157.061948,0.0001452,2]
[333282595,1722018653878,-151.0,0.0001452,2]
[333282596,1722018653887,-731.71,0.0001452,2]
[333282597,1722018653896,-151.0,0.0001452,2]
[333282598,1722018653906,-555.45,0.0001452,2]
[333282599,1722018653916,-500.0,0.0001452,2]
[333282600,1722018653925,-500.0,0.0001452,2]
[333282601,1722018653935,-500.0,0.0001452,2]
[333282602,1722018653944,-500.0,0.0001452,2]
[333282603,1722018653954,-622.85,0.0001452,2]
[333282604,1722018653963,-600.75,0.0001452,2]
[333282605,1722018653974,-680.5,0.0001452,2]
[333282606,1722018653984,-833.43,0.0001452,2]
[333282607,1722018653993,-500.0,0.0001452,2]
[333282608,1722018654003,-500.0,0.0001452,2]
[333282609,1722018654012,-500.0,0.0001452,2]
[333282610,1722018654021,-500.0,0.0001452,2]
[333282611,1722018654032,-784.33,0.0001452,2]
[333282612,1722018654041,-151.0,0.0001452,2]
[333282613,1722018654051,-533.03,0.0001452,2]
[333282614,1722018654060,-500.0,0.0001452,2]
[333282615,1722018654070,-500.0,0.0001452,2]
[333282616,1722018654081,-500.0,0.0001452,2]
[333282617,1722018654093,-948.14,0.0001452,2]
[333282618,1722018654105,-151.0,0.0001452,2]
[333282619,1722018654115,-740.15,0.0001452,2]
[333282620,1722018654128,-595.72,0.0001452,2]
[333282621,1722018654137,-500.0,0.0001452,2]
[333282622,1722018654147,-500.0,0.0001452,2]
[333282623,1722018654158,-1393.67,0.0001452,2]
[333282624,1722018654171,-500.0,0.0001452,2]
[333282625,1722018654181,-817.612571,0.0001452,2]
[333282626,1722018654190,-500.0,0.0001452,2]
[333282627,1722018654200,-817.612571,0.0001452,2]
[333282628,1722018654211,-500.0,0.0001452,2]
[333282629,1722018654220,-511.54,0.0001452,2]
[333282630,1722018654230,-500.0,0.0001452,2]
[333282631,1722018654240,-500.0,0.0001452,2]
[333282632,1722018654252,-500.0,0.0001452,2]
[333282633,1722018654262,-500.0,0.0001452,2]
[333282634,1722018654272,-500.0,0.0001452,2]
[333282635,1722018654281,-500.0,0.0001452,2]
[333282636,1722018654291,-500.0,0.0001452,2]
[333282637,1722018654301,-1627.04,0.0001452,2]
[333282638,1722018654310,-500.0,0.0001452,2]
[333282639,1722018654320,-983.07,0.0001452,2]
[333282640,1722018654330,-797.01,0.0001452,2]
[333282641,1722018654341,-500.0,0.0001452,2]
[333282642,1722018654350,-4761.86,0.0001452,2]
[333282643,1722018654359,-500.0,0.0001452,2]
[333282644,1722018654369,-500.0,0.0001452,2]
[333282645,1722018654379,-1306.28,0.0001452,2]
[333282646,1722018654388,-500.0,0.0001452,2]
[333282647,1722018654397,-459.35990385,0.0001452,2]
[333282648,1722018654407,-969.19,0.0001452,2]
[333282649,1722018654416,-825.44,0.0001452,2]
[333282650,1722018654426,-500.0,0.0001452,2]
[333282651,1722018654437,-500.0,0.0001452,2]
[333282652,1722018654448,-767.58,0.0001452,2]
[333282653,1722018654460,-500.0,0.0001452,2]
[333282654,1722018654470,-500.0,0.0001452,2]
[333282655,1722018654480,-500.0,0.0001452,2]
[333282656,1722018654489,-726.29,0.0001452,2]
[333282657,1722018654499,-868.81,0.0001452,2]
[333282658,1722018654509,-618.32,0.0001452,2]
[333282659,1722018654519,-329.19762248,0.0001452,2]
[333282660,1722018654528,-500.0,0.0001452,2]
[333282661,1722018654538,-1921.95,0.0001452,2]
[333282662,1722018654547,-500.0,0.0001452,2]
[333282663,1722018654557,-5389.54,0.0001452,2]
[333282664,1722018654567,-500.0,0.0001452,2]
[333282665,1722018654577,-500.0,0.0001452,2]
[333282666,1722018654586,-500.0,0.0001452,2]
[333282667,1722018654595,-2174.84,0.0001452,2]
[333282668,1722018654604,-500.0,0.0001452,2]
[333282669,1722018654614,-960.188475,0.0001452,2]
[333282670,1722018654623,-151.0,0.0001452,2]
[333282671,1722018654633,-828.72,0.0001452,2]
[333282672,1722018654643,-960.188475,0.0001452,2]
[333282673,1722018654652,-1041.76,0.0001452,2]
[333282674,1722018654662,-1205.1,0.0001452,2]
[333282675,1722018654672,-1646.68,0.0001452,2]
[333282676,1722018654681,-500.0,0.0001452,2]
[333282677,1722018654690,-1583.11,0.0001452,2]
[333282678,1722018654699,-500.0,0.0001452,2]
[333282679,1722018654709,-721.209202,0.0001452,2]
[333282680,1722018654718,-643.23,0.0001452,2]
[333282681,1722018654728,-721.209202,0.0001452,2]
[333282682,1722018654737,-500.0,0.0001452,2]
[333282683,1722018654746,-572.33788123,0.0001452,2]
[333282684,1722018654899,-111.92211877,0.0001452,2]
[333282685,1722018654908,-500.0,0.0001452,2]
[333282686,1722018654918,-999.35,0.0001452,2]
[333282687,1722018654928,-151.0,0.0001452,2]
[333282688,1722018654937,-3255.34320786,0.0001452,2]
[333282689,1722018655408,-500.0,0.00013698,2]
[333282690,1722018655419,-500.0,0.00013698,2]
[333282691,1722018655428,-157.0,0.00013698,2]
[333282692,1722018655441,-343.0,0.00013698,2]
[333282693,1722018655451,-500.0,0.00013698,2]
[333282694,1722018655461,-323.08857699,0.00013698,2]
[333282695,1722018655472,-500.0,0.00013698,2]
[333282696,1722018655483,-500.0,0.00013698,2]
[333282697,1722018655494,-500.0,0.00013698,2]
[333282698,1722018655506,-500.0,0.00013972,2]
[333282699,1722018655516,-500.0,0.00014246,2]
[333282700,1722018655527,-785.42679214,0.0001452,2]
[333282701,1722018655537,-605.8,0.0001452,2]
[333282702,1722018655547,-547.12,0.0001452,2]
[333282703,1722018655557,-500.0,0.0001452,2]
[333282704,1722018655566,-500.0,0.0001452,2]
[333282705,1722018655581,-318.543474,0.0001452,2]
[333282706,1722018655591,-318.543474,0.0001452,2]
[333282707,1722018655601,-151.0,0.0001452,2]
[333282708,1722018655610,-500.0,0.0001452,2]
[333282709,1722018655625,-671.03,0.0001452,2]
[333282710,1722018655634,-697.8,0.0001452,2]
[333282711,1722018655644,-500.0,0.0001452,2]
[333282712,1722018655653,-3061.60323415,0.0001452,2]
[333282713,1722018655860,-151.0,0.00013698,2]
[333282714,1722018655869,-500.0,0.00013698,2]
[333282715,1722018655879,-151.0,0.00013972,2]
[333282716,1722018655889,-151.0,0.00014246,2]
[333282717,1722018655899,-249.69676585,0.0001452,2]
[333282718,1722018655908,-911.04,0.0001452,2]
[333282719,1722018655919,-500.0,0.0001452,2]
[333282720,1722018655929,-1661.96,0.0001452,2]
[333282721,1722018655939,-397.756453,0.0001452,2]
[333282722,1722018655949,-786.67,0.0001452,2]